[Event "Late-Titled-Tuesday-Blitz-October-03-2023"]
[Site "Chess.com"]
[Date "2023.10.03"]
[Round "10"]
[White "PNEPaul"]
[Black "familijatop71"]
[Result "1-0"]
[WhiteElo "1972"]
[BlackElo "2149"]
[TimeControl "180+1"]
[EndTime "15:50:32 PDT"]
[Termination "PNEPaul won by checkmate"]

1. e4 {[%clk 0:02:52.1]} 1... c5 {[%clk 0:02:58.1]} 2. d4 {[%clk 0:02:51.5]}
2... cxd4 {[%clk 0:02:57]} 3. c3 {[%clk 0:02:51.7]} 3... dxc3 {[%clk 0:02:57.8]}
4. Nxc3 {[%clk 0:02:51.6]} 4... Nc6 {[%clk 0:02:58.4]} 5. Nf3 {[%clk 0:02:51.6]}
5... Qc7 {[%clk 0:02:58.5]} 6. Bc4 {[%clk 0:02:37]} 6... e6 {[%clk 0:02:55.2]}
7. Qe2 {[%clk 0:02:34.8]} 7... Nf6 {[%clk 0:02:48.1]} 8. e5 {[%clk 0:02:31.9]}
8... Ng4 {[%clk 0:02:41.5]} 9. Bf4 {[%clk 0:02:31.2]} 9... Bc5 {[%clk
0:02:26.1]} 10. O-O {[%clk 0:02:14.1]} 10... a6 {[%clk 0:02:17.2]} 11. h3 {[%clk
0:02:08.2]} 11... Nh6 {[%clk 0:02:15.2]} 12. Ne4 {[%clk 0:02:04.7]} 12... Be7
{[%clk 0:02:11.2]} 13. Nd6+ {[%clk 0:02:00.7]} 13... Bxd6 {[%clk 0:02:09.9]} 14.
exd6 {[%clk 0:01:59.5]} 14... Qb6 {[%clk 0:02:08.5]} 15. Bxh6 {[%clk 0:01:58.5]}
15... gxh6 {[%clk 0:02:07.8]} 16. Ne5 {[%clk 0:01:40.8]} 16... Nxe5 {[%clk
0:01:47.8]} 17. Qxe5 {[%clk 0:01:40.1]} 17... Rg8 {[%clk 0:01:48.3]} 18. Bd3
{[%clk 0:01:26.3]} 18... Qd8 {[%clk 0:01:31.7]} 19. Bxh7 {[%clk 0:01:22.4]}
19... Rf8 {[%clk 0:01:24.6]} 20. Qg7 {[%clk 0:01:13.8]} 20... b5 {[%clk
0:01:11.1]} 21. Rac1 {[%clk 0:01:00.5]} 21... Bb7 {[%clk 0:01:06.9]} 22. Rc7
{[%clk 0:00:58.5]} 22... Bc6 {[%clk 0:01:02.5]} 23. Qxh6 {[%clk 0:00:52.2]}
23... Rc8 {[%clk 0:00:50.2]} 24. Rxc8 {[%clk 0:00:48.4]} 24... Qxc8 {[%clk
0:00:50.1]} 25. Rc1 {[%clk 0:00:43]} 25... Qb7 {[%clk 0:00:48.3]} 26. Qh4 {[%clk
0:00:27.1]} 26... f6 {[%clk 0:00:46.3]} 27. Bg6+ {[%clk 0:00:23.8]} 27... Kd8
{[%clk 0:00:45.9]} 28. Qh6 {[%clk 0:00:15.2]} 28... Rg8 {[%clk 0:00:30]} 29. Qh7
{[%clk 0:00:14.9]} 29... Rxg6 {[%clk 0:00:20]} 30. Qh8+ {[%clk 0:00:10.9]} 30...
Rg8 {[%clk 0:00:18.8]} 31. Qxg8# {[%clk 0:00:11.1]} 1-0

[Event "Late-Titled-Tuesday-Blitz-October-03-2023"]
[Site "Chess.com"]
[Date "2023.10.03"]
[Round "10"]
[White "PapaieDudu"]
[Black "talaicito"]
[Result "1-0"]
[WhiteElo "2386"]
[BlackElo "2183"]
[TimeControl "180+1"]
[EndTime "15:50:37 PDT"]
[Termination "PapaieDudu won on time"]

1. e4 {[%clk 0:03:00.9]} 1... c5 {[%clk 0:02:59.7]} 2. Nf3 {[%clk 0:03:01.1]}
2... d6 {[%clk 0:03:00.2]} 3. d4 {[%clk 0:03:01.8]} 3... cxd4 {[%clk 0:03:00.9]}
4. c3 {[%clk 0:03:02.6]} 4... d3 {[%clk 0:02:55.8]} 5. Bxd3 {[%clk 0:03:02.7]}
5... g6 {[%clk 0:02:54.6]} 6. Nbd2 {[%clk 0:03:01.7]} 6... Bg7 {[%clk
0:02:55.5]} 7. Nc4 {[%clk 0:03:00.8]} 7... Nc6 {[%clk 0:02:53.5]} 8. a4 {[%clk
0:03:00.7]} 8... Nf6 {[%clk 0:02:52.8]} 9. O-O {[%clk 0:03:00.2]} 9... O-O
{[%clk 0:02:53.1]} 10. h3 {[%clk 0:03:00.9]} 10... Be6 {[%clk 0:02:50.3]} 11.
Qe2 {[%clk 0:03:00.8]} 11... Rc8 {[%clk 0:02:48.9]} 12. Rd1 {[%clk 0:03:00.3]}
12... Na5 {[%clk 0:02:45.7]} 13. Nxa5 {[%clk 0:02:59]} 13... Qxa5 {[%clk
0:02:44.8]} 14. b4 {[%clk 0:02:58.6]} 14... Qc7 {[%clk 0:02:43.8]} 15. Bb2
{[%clk 0:02:58.6]} 15... Bc4 {[%clk 0:02:42]} 16. Nd4 {[%clk 0:02:54.3]} 16...
a6 {[%clk 0:02:36.9]} 17. a5 {[%clk 0:02:49.1]} 17... Nd7 {[%clk 0:02:26.8]} 18.
f4 {[%clk 0:02:43.4]} 18... Nf6 {[%clk 0:02:18.3]} 19. Ra3 {[%clk 0:02:05.4]}
19... Nh5 {[%clk 0:02:17.4]} 20. Bxc4 {[%clk 0:02:02.3]} 20... Nxf4 {[%clk
0:02:03.7]} 21. Qf1 {[%clk 0:01:35.1]} 21... Qxc4 {[%clk 0:02:02.7]} 22. Qxf4
{[%clk 0:01:25.2]} 22... e5 {[%clk 0:02:02.5]} 23. Qf2 {[%clk 0:01:07.5]} 23...
exd4 {[%clk 0:02:02.5]} 24. cxd4 {[%clk 0:01:08.2]} 24... Qxb4 {[%clk
0:02:02.4]} 25. e5 {[%clk 0:01:04.9]} 25... d5 {[%clk 0:01:24.6]} 26. Rf3 {[%clk
0:01:03.7]} 26... Qxa5 {[%clk 0:01:17.5]} 27. Rf1 {[%clk 0:01:03.1]} 27... Qc7
{[%clk 0:00:38.4]} 28. Ba3 {[%clk 0:01:02.5]} 28... b5 {[%clk 0:00:22.8]} 29.
Bd6 {[%clk 0:01:02.1]} 29... Qd7 {[%clk 0:00:21.7]} 30. Bxf8 {[%clk 0:00:54.3]}
30... Rxf8 {[%clk 0:00:21.4]} 31. Qa2 {[%clk 0:00:49.8]} 31... Qe6 {[%clk
0:00:20.6]} 32. Rc1 {[%clk 0:00:49.6]} 32... h5 {[%clk 0:00:16.6]} 33. Rc5
{[%clk 0:00:49.5]} 33... Rd8 {[%clk 0:00:12.9]} 34. Ra3 {[%clk 0:00:49.9]} 34...
Qf5 {[%clk 0:00:04.4]} 35. Rxa6 {[%clk 0:00:42.6]} 35... Qe4 {[%clk 0:00:03]}
36. Qf2 {[%clk 0:00:34.2]} 1-0

[Event "Late-Titled-Tuesday-Blitz-October-03-2023"]
[Site "Chess.com"]
[Date "2023.10.03"]
[Round "10"]
[White "aistrel"]
[Black "TanitoluwaAps116"]
[Result "0-1"]
[WhiteElo "2547"]
[BlackElo "2670"]
[TimeControl "180+1"]
[EndTime "15:50:38 PDT"]
[Termination "TanitoluwaAps116 won by checkmate"]

1. d4 {[%clk 0:03:00.9]} 1... Nf6 {[%clk 0:02:40.5]} 2. Nc3 {[%clk 0:02:59.3]}
2... d5 {[%clk 0:02:38.6]} 3. Bf4 {[%clk 0:02:59.9]} 3... c6 {[%clk 0:02:39.2]}
4. f3 {[%clk 0:03:00.1]} 4... Bf5 {[%clk 0:02:34.3]} 5. g4 {[%clk 0:02:59.8]}
5... Bg6 {[%clk 0:02:34.6]} 6. h4 {[%clk 0:03:00.5]} 6... h5 {[%clk 0:02:35]} 7.
g5 {[%clk 0:03:01]} 7... Nfd7 {[%clk 0:02:35.7]} 8. e4 {[%clk 0:03:01.7]} 8...
e6 {[%clk 0:02:36.2]} 9. Bd3 {[%clk 0:03:01.7]} 9... Na6 {[%clk 0:02:32.8]} 10.
exd5 {[%clk 0:02:57.9]} 10... Bxd3 {[%clk 0:02:27.5]} 11. dxe6 {[%clk
0:02:56.4]} 11... Bf5 {[%clk 0:02:20.9]} 12. exd7+ {[%clk 0:02:56]} 12... Qxd7
{[%clk 0:02:21.8]} 13. Qe2+ {[%clk 0:02:54.5]} 13... Be7 {[%clk 0:02:20.8]} 14.
O-O-O {[%clk 0:02:52.3]} 14... Nb4 {[%clk 0:02:20.4]} 15. Rd2 {[%clk 0:01:57]}
15... O-O-O {[%clk 0:02:14.3]} 16. Nh3 {[%clk 0:01:39.5]} 16... Bxh3 {[%clk
0:02:13.1]} 17. Rxh3 {[%clk 0:01:38.6]} 17... Qxh3 {[%clk 0:02:13.2]} 18. Qxe7
{[%clk 0:01:39.3]} 18... Na6 {[%clk 0:01:47.2]} 19. d5 {[%clk 0:01:39.3]} 19...
Rhe8 {[%clk 0:01:41.9]} 20. Qxf7 {[%clk 0:01:04.7]} 20... Rf8 {[%clk 0:01:39.3]}
21. Qe7 {[%clk 0:00:49.7]} 21... Rxf4 {[%clk 0:00:52.6]} 22. dxc6 {[%clk
0:00:49.3]} 22... Rxd2 {[%clk 0:00:52.7]} 23. Qxb7+ {[%clk 0:00:20.6]} 23... Kd8
{[%clk 0:00:50.8]} 24. Kxd2 {[%clk 0:00:21.5]} 24... Rd4+ {[%clk 0:00:16.6]} 25.
Ke3 {[%clk 0:00:21.4]} 25... Qxh4 {[%clk 0:00:16.3]} 26. Ne4 {[%clk 0:00:17.9]}
26... Rxe4+ {[%clk 0:00:11.7]} 27. fxe4 {[%clk 0:00:18.8]} 27... Qxg5+ {[%clk
0:00:11.6]} 28. Kd3 {[%clk 0:00:16.4]} 28... Nc5+ {[%clk 0:00:11.7]} 29. Kc4
{[%clk 0:00:17]} 29... Nxb7 {[%clk 0:00:12.6]} 30. cxb7 {[%clk 0:00:17.1]} 30...
Kc7 {[%clk 0:00:13.5]} 31. b8=Q+ {[%clk 0:00:15.8]} 31... Kxb8 {[%clk
0:00:13.8]} 32. b4 {[%clk 0:00:16.5]} 32... Kc7 {[%clk 0:00:14.4]} 33. Kb3
{[%clk 0:00:17.4]} 33... Qe5 {[%clk 0:00:14.4]} 34. c4 {[%clk 0:00:18.3]} 34...
h4 {[%clk 0:00:15.1]} 35. a4 {[%clk 0:00:18.8]} 35... h3 {[%clk 0:00:16]} 36. a5
{[%clk 0:00:19.7]} 36... h2 {[%clk 0:00:16.9]} 37. Ka4 {[%clk 0:00:20.5]} 37...
h1=Q {[%clk 0:00:16.8]} 38. c5 {[%clk 0:00:21.4]} 38... Qd1+ {[%clk 0:00:17.1]}
39. Kb5 {[%clk 0:00:22.3]} 39... Qd3+ {[%clk 0:00:16.6]} 40. Ka4 {[%clk
0:00:22.3]} 40... Qa1# {[%clk 0:00:17.4]} 0-1

[Event "Late-Titled-Tuesday-Blitz-October-03-2023"]
[Site "Chess.com"]
[Date "2023.10.03"]
[Round "10"]
[White "shirovin"]
[Black "jinxy2009"]
[Result "0-1"]
[WhiteElo "2066"]
[BlackElo "2258"]
[TimeControl "180+1"]
[EndTime "15:50:41 PDT"]
[Termination "jinxy2009 won on time"]

1. e4 {[%clk 0:03:00.9]} 1... c5 {[%clk 0:02:55.7]} 2. Nf3 {[%clk 0:03:00.2]}
2... Nc6 {[%clk 0:02:55.1]} 3. d4 {[%clk 0:02:59.6]} 3... cxd4 {[%clk 0:02:56]}
4. Nxd4 {[%clk 0:02:59.7]} 4... Nf6 {[%clk 0:02:55.6]} 5. Nc3 {[%clk 0:02:58.9]}
5... e5 {[%clk 0:02:55.4]} 6. Ndb5 {[%clk 0:02:58.2]} 6... d6 {[%clk 0:02:55.1]}
7. Bg5 {[%clk 0:02:57.4]} 7... a6 {[%clk 0:02:54.3]} 8. Na3 {[%clk 0:02:58]}
8... b5 {[%clk 0:02:54.1]} 9. Nab1 {[%clk 0:02:58.5]} 9... Be7 {[%clk
0:02:47.3]} 10. Bxf6 {[%clk 0:02:56.5]} 10... Bxf6 {[%clk 0:02:47.2]} 11. a4
{[%clk 0:02:57]} 11... b4 {[%clk 0:02:46.9]} 12. Nd5 {[%clk 0:02:57.4]} 12...
Bg5 {[%clk 0:02:47]} 13. Bc4 {[%clk 0:02:56.6]} 13... O-O {[%clk 0:02:45.6]} 14.
O-O {[%clk 0:02:55.6]} 14... Be6 {[%clk 0:02:45.6]} 15. Qd3 {[%clk 0:02:52.2]}
15... Na5 {[%clk 0:02:26.5]} 16. Ba2 {[%clk 0:02:43.6]} 16... b3 {[%clk
0:02:15.4]} 17. cxb3 {[%clk 0:02:38.1]} 17... f5 {[%clk 0:02:13.1]} 18. b4
{[%clk 0:02:28.9]} 18... Nc6 {[%clk 0:02:10.7]} 19. Nbc3 {[%clk 0:02:22.5]}
19... Nd4 {[%clk 0:02:07.1]} 20. Ne2 {[%clk 0:02:05.6]} 20... Nxe2+ {[%clk
0:01:56.4]} 21. Qxe2 {[%clk 0:02:04.7]} 21... fxe4 {[%clk 0:01:56.5]} 22. Qxe4
{[%clk 0:02:03.9]} 22... Kh8 {[%clk 0:01:54.4]} 23. Rad1 {[%clk 0:01:51.4]}
23... Rc8 {[%clk 0:01:50.3]} 24. Bb3 {[%clk 0:01:43.3]} 24... Bxd5 {[%clk
0:01:42.5]} 25. Rxd5 {[%clk 0:01:33.9]} 25... Rf4 {[%clk 0:01:38.7]} 26. Qd3
{[%clk 0:01:30.1]} 26... Rxb4 {[%clk 0:01:27.2]} 27. Rxd6 {[%clk 0:01:26.7]}
27... Qf8 {[%clk 0:01:18.3]} 28. Rxa6 {[%clk 0:01:10.7]} 28... e4 {[%clk
0:01:12.3]} 29. Qg3 {[%clk 0:01:04.6]} 29... Bf4 {[%clk 0:01:07.7]} 30. Qc3
{[%clk 0:00:54.7]} 30... Rxc3 {[%clk 0:01:04.7]} 31. bxc3 {[%clk 0:00:10.5]}
31... Rxb3 {[%clk 0:01:01.3]} 32. Rd1 {[%clk 0:00:11]} 32... Rb8 {[%clk
0:00:58.8]} 33. Re6 {[%clk 0:00:08.4]} 33... Re8 {[%clk 0:00:57.6]} 34. Rc6
{[%clk 0:00:07.4]} 34... e3 {[%clk 0:00:57.1]} 35. fxe3 {[%clk 0:00:06.4]} 35...
Bxe3+ {[%clk 0:00:57.3]} 36. Kh1 {[%clk 0:00:07.2]} 36... h6 {[%clk 0:00:50.3]}
37. a5 {[%clk 0:00:06.2]} 37... Bd2 {[%clk 0:00:50]} 38. a6 {[%clk 0:00:02.9]}
38... Re1+ {[%clk 0:00:48]} 39. Rxe1 {[%clk 0:00:02.3]} 39... Bxe1 {[%clk
0:00:48.9]} 40. h3 {[%clk 0:00:01.7]} 40... Qf1+ {[%clk 0:00:43.7]} 41. Kh2
{[%clk 0:00:01.7]} 41... Bf2 {[%clk 0:00:43.9]} 0-1

[Event "Late-Titled-Tuesday-Blitz-October-03-2023"]
[Site "Chess.com"]
[Date "2023.10.03"]
[Round "10"]
[White "ArtemDyachuk"]
[Black "Fandorine"]
[Result "0-1"]
[WhiteElo "2701"]
[BlackElo "2934"]
[TimeControl "180+1"]
[EndTime "15:50:47 PDT"]
[Termination "Fandorine won by checkmate"]

1. e4 {[%clk 0:03:00.9]} 1... e6 {[%clk 0:02:57.2]} 2. d4 {[%clk 0:02:59]} 2...
d5 {[%clk 0:02:57.8]} 3. e5 {[%clk 0:02:59]} 3... c5 {[%clk 0:02:57.9]} 4. c3
{[%clk 0:02:56.8]} 4... Nc6 {[%clk 0:02:58.4]} 5. Nf3 {[%clk 0:02:53.2]} 5...
Bd7 {[%clk 0:02:58.9]} 6. Be2 {[%clk 0:02:50.9]} 6... f6 {[%clk 0:02:59]} 7. O-O
{[%clk 0:02:48.8]} 7... fxe5 {[%clk 0:02:58.8]} 8. Nxe5 {[%clk 0:02:48.5]} 8...
Nxe5 {[%clk 0:02:59]} 9. dxe5 {[%clk 0:02:49.4]} 9... Qc7 {[%clk 0:02:59.5]} 10.
c4 {[%clk 0:02:46.2]} 10... Qxe5 {[%clk 0:02:58.2]} 11. cxd5 {[%clk 0:02:37.5]}
11... O-O-O {[%clk 0:02:57.5]} 12. Bf3 {[%clk 0:02:29.4]} 12... exd5 {[%clk
0:02:44.4]} 13. Re1 {[%clk 0:02:28.4]} 13... Qf5 {[%clk 0:02:44.3]} 14. Nc3
{[%clk 0:02:16.8]} 14... Nf6 {[%clk 0:02:42.4]} 15. b4 {[%clk 0:01:29]} 15... d4
{[%clk 0:01:23.3]} 16. Ne4 {[%clk 0:01:16.5]} 16... Bc6 {[%clk 0:01:17.9]} 17.
Ng5 {[%clk 0:00:58]} 17... Bxf3 {[%clk 0:01:12.8]} 18. Nxf3 {[%clk 0:00:58.9]}
18... c4 {[%clk 0:01:04.4]} 19. Re5 {[%clk 0:00:47.6]} 19... Qd7 {[%clk
0:00:57]} 20. Ra5 {[%clk 0:00:33]} 20... b6 {[%clk 0:00:27.1]} 21. Ne5 {[%clk
0:00:32.5]} 21... Qb7 {[%clk 0:00:26.8]} 22. Ra3 {[%clk 0:00:30.7]} 22... Bxb4
{[%clk 0:00:25.6]} 23. Rg3 {[%clk 0:00:25.6]} 23... Rhe8 {[%clk 0:00:23.5]} 24.
Bf4 {[%clk 0:00:22.1]} 24... Bd6 {[%clk 0:00:22.8]} 25. Rg5 {[%clk 0:00:14.6]}
25... h6 {[%clk 0:00:22.2]} 26. Rf5 {[%clk 0:00:13.2]} 26... Qe4 {[%clk
0:00:22.1]} 27. Qa4 {[%clk 0:00:06.4]} 27... Bxe5 {[%clk 0:00:22.6]} 28. Qxa7
{[%clk 0:00:03.1]} 28... Qxf5 {[%clk 0:00:16.7]} 29. Qa8+ {[%clk 0:00:03.3]}
29... Kd7 {[%clk 0:00:17]} 30. Qb7+ {[%clk 0:00:03.5]} 30... Ke6 {[%clk
0:00:16.7]} 31. Rb1 {[%clk 0:00:02.5]} 31... Qxb1+ {[%clk 0:00:14.1]} 32. Bc1
{[%clk 0:00:01.4]} 32... Qxc1# {[%clk 0:00:14]} 0-1

[Event "Late-Titled-Tuesday-Blitz-October-03-2023"]
[Site "Chess.com"]
[Date "2023.10.03"]
[Round "10"]
[White "davigator"]
[Black "arminmusovic"]
[Result "0-1"]
[WhiteElo "2328"]
[BlackElo "2503"]
[TimeControl "180+1"]
[EndTime "15:50:47 PDT"]
[Termination "arminmusovic won by checkmate"]

1. e4 {[%clk 0:03:00.9]} 1... c6 {[%clk 0:02:59.9]} 2. d4 {[%clk 0:03:00.2]}
2... d5 {[%clk 0:03:00.8]} 3. e5 {[%clk 0:03:00.3]} 3... c5 {[%clk 0:03:00.9]}
4. dxc5 {[%clk 0:02:59.9]} 4... Nc6 {[%clk 0:03:01.5]} 5. Bb5 {[%clk 0:02:53.3]}
5... e6 {[%clk 0:02:59.9]} 6. b4 {[%clk 0:02:52.8]} 6... Qc7 {[%clk 0:02:59]} 7.
Nf3 {[%clk 0:02:51.5]} 7... Ne7 {[%clk 0:02:59.5]} 8. O-O {[%clk 0:02:50.4]}
8... Nf5 {[%clk 0:02:57.6]} 9. Bb2 {[%clk 0:02:48.7]} 9... Be7 {[%clk 0:02:57]}
10. a3 {[%clk 0:02:47.6]} 10... O-O {[%clk 0:02:57.4]} 11. Nbd2 {[%clk
0:02:45.7]} 11... Bd7 {[%clk 0:02:54.9]} 12. Bd3 {[%clk 0:02:43.6]} 12... f6
{[%clk 0:02:53.4]} 13. Bxf5 {[%clk 0:02:43.1]} 13... exf5 {[%clk 0:02:54.3]} 14.
Re1 {[%clk 0:02:34.2]} 14... Rae8 {[%clk 0:02:47.8]} 15. Nb3 {[%clk 0:02:32.3]}
15... b6 {[%clk 0:02:43.2]} 16. Qxd5+ {[%clk 0:02:29.9]} 16... Kh8 {[%clk
0:02:42.2]} 17. e6 {[%clk 0:02:29.7]} 17... Bc8 {[%clk 0:02:38.8]} 18. cxb6
{[%clk 0:02:26.7]} 18... axb6 {[%clk 0:02:35.8]} 19. Qxf5 {[%clk 0:02:24.2]}
19... Ne5 {[%clk 0:02:32.5]} 20. Nxe5 {[%clk 0:02:19]} 20... fxe5 {[%clk
0:02:33.4]} 21. Qxe5 {[%clk 0:02:19.1]} 21... Bd6 {[%clk 0:02:32.4]} 22. Qh5
{[%clk 0:02:14.3]} 22... Qxc2 {[%clk 0:02:27.5]} 23. Bd4 {[%clk 0:02:02.8]}
23... Qxb3 {[%clk 0:02:22.8]} 24. Re3 {[%clk 0:02:02.3]} 24... Qc4 {[%clk
0:02:08.4]} 25. Qg4 {[%clk 0:01:56.7]} 25... Qc7 {[%clk 0:01:36.6]} 26. Rae1
{[%clk 0:01:40.4]} 26... Rf4 {[%clk 0:01:33.3]} 27. Qh5 {[%clk 0:01:36]} 27...
Rxe6 {[%clk 0:01:24.2]} 28. Rxe6 {[%clk 0:01:20.1]} 28... Bxe6 {[%clk
0:01:25.1]} 29. Qe8+ {[%clk 0:01:20]} 29... Bg8 {[%clk 0:01:21.7]} 30. g3 {[%clk
0:01:20.1]} 30... Rf8 {[%clk 0:01:18.5]} 31. Qh5 {[%clk 0:01:18.7]} 31... Qf7
{[%clk 0:01:17]} 32. Qg4 {[%clk 0:01:14.6]} 32... b5 {[%clk 0:01:10]} 33. h4
{[%clk 0:01:11]} 33... h5 {[%clk 0:01:10.2]} 34. Qg5 {[%clk 0:01:09.2]} 34...
Kh7 {[%clk 0:01:09.8]} 35. Rd1 {[%clk 0:00:58.4]} 35... Be7 {[%clk 0:01:08]} 36.
Qxb5 {[%clk 0:00:54.2]} 36... Qg6 {[%clk 0:01:04.8]} 37. Kf1 {[%clk 0:00:47.8]}
37... Be6 {[%clk 0:01:00.7]} 38. Re1 {[%clk 0:00:42]} 38... Bh3+ {[%clk
0:00:56.4]} 39. Kg1 {[%clk 0:00:39.3]} 39... Bxh4 {[%clk 0:00:53.9]} 40. Re3
{[%clk 0:00:36.4]} 40... Bf5 {[%clk 0:00:47]} 41. Kh2 {[%clk 0:00:32.5]} 41...
Bg5 {[%clk 0:00:47.1]} 42. f4 {[%clk 0:00:31.7]} 42... Bh6 {[%clk 0:00:47.6]}
43. Re5 {[%clk 0:00:30.7]} 43... Qg4 {[%clk 0:00:46.9]} 44. Bf2 {[%clk
0:00:28.4]} 44... h4 {[%clk 0:00:46.7]} 45. Qc5 {[%clk 0:00:22.9]} 45... hxg3+
{[%clk 0:00:44.6]} 46. Bxg3 {[%clk 0:00:23]} 46... Qh3+ {[%clk 0:00:45]} 47. Kg1
{[%clk 0:00:22.6]} 47... Qxg3+ {[%clk 0:00:45.9]} 48. Kf1 {[%clk 0:00:23.3]}
48... Qxf4+ {[%clk 0:00:46.3]} 49. Ke2 {[%clk 0:00:22.5]} 49... Bg4+ {[%clk
0:00:44.3]} 50. Kd3 {[%clk 0:00:22.4]} 50... Rd8+ {[%clk 0:00:44.4]} 51. Kc3
{[%clk 0:00:20.5]} 51... Qd2+ {[%clk 0:00:41.7]} 52. Kb3 {[%clk 0:00:20.7]}
52... Bd1+ {[%clk 0:00:41.9]} 53. Kc4 {[%clk 0:00:19.9]} 53... Qd3# {[%clk
0:00:41.8]} 0-1

[Event "Late-Titled-Tuesday-Blitz-October-03-2023"]
[Site "Chess.com"]
[Date "2023.10.03"]
[Round "10"]
[White "Giorno"]
[Black "Saraisitave"]
[Result "1-0"]
[WhiteElo "2511"]
[BlackElo "2312"]
[TimeControl "180+1"]
[EndTime "15:50:47 PDT"]
[Termination "Giorno won on time"]

1. Nf3 {[%clk 0:02:59.3]} 1... d5 {[%clk 0:02:59.4]} 2. c4 {[%clk 0:02:58.1]}
2... c6 {[%clk 0:02:57.4]} 3. e3 {[%clk 0:02:57.6]} 3... Nf6 {[%clk 0:02:56.7]}
4. Nc3 {[%clk 0:02:57.1]} 4... g6 {[%clk 0:02:56.1]} 5. cxd5 {[%clk 0:02:55.3]}
5... cxd5 {[%clk 0:02:56.7]} 6. d4 {[%clk 0:02:55]} 6... Bg7 {[%clk 0:02:56.8]}
7. Be2 {[%clk 0:02:51.7]} 7... O-O {[%clk 0:02:56.5]} 8. O-O {[%clk 0:02:52.4]}
8... Nc6 {[%clk 0:02:54.7]} 9. Ne5 {[%clk 0:02:51.2]} 9... a6 {[%clk 0:02:43.3]}
10. Nxc6 {[%clk 0:02:49.5]} 10... bxc6 {[%clk 0:02:43.9]} 11. Na4 {[%clk
0:02:49]} 11... Ne4 {[%clk 0:02:41.3]} 12. Bd2 {[%clk 0:02:45.6]} 12... e5
{[%clk 0:02:41.1]} 13. Bb4 {[%clk 0:02:42.2]} 13... Re8 {[%clk 0:02:33.6]} 14.
Rc1 {[%clk 0:02:41]} 14... exd4 {[%clk 0:02:23.7]} 15. exd4 {[%clk 0:02:41.1]}
15... Qg5 {[%clk 0:02:00.2]} 16. Bf3 {[%clk 0:02:22.8]} 16... Rb8 {[%clk
0:01:27.5]} 17. a3 {[%clk 0:02:12.8]} 17... Bd7 {[%clk 0:01:21.9]} 18. Kh1
{[%clk 0:01:37.9]} 18... h5 {[%clk 0:01:21.2]} 19. Bc3 {[%clk 0:01:22.1]} 19...
h4 {[%clk 0:01:19.6]} 20. Bxe4 {[%clk 0:01:17.3]} 20... dxe4 {[%clk 0:01:18]}
21. h3 {[%clk 0:00:56.2]} 21... e3 {[%clk 0:01:03.4]} 22. fxe3 {[%clk 0:00:56]}
22... Rxe3 {[%clk 0:01:02.3]} 23. Bd2 {[%clk 0:00:50]} 23... Bxh3 {[%clk
0:00:56.5]} 24. Rf2 {[%clk 0:00:36.4]} 24... Rbe8 {[%clk 0:00:35.4]} 25. Bxe3
{[%clk 0:00:30.6]} 25... Rxe3 {[%clk 0:00:33.7]} 26. Rc3 {[%clk 0:00:28.3]}
26... Rxc3 {[%clk 0:00:11.3]} 27. Nxc3 {[%clk 0:00:18.2]} 27... Bg4 {[%clk
0:00:11.4]} 28. Qd2 {[%clk 0:00:17.3]} 28... Qh5 {[%clk 0:00:06.3]} 29. Qf4
{[%clk 0:00:15.8]} 29... g5 {[%clk 0:00:01]} 30. Qb8+ {[%clk 0:00:12.2]} 1-0

[Event "Late-Titled-Tuesday-Blitz-October-03-2023"]
[Site "Chess.com"]
[Date "2023.10.03"]
[Round "10"]
[White "campochess"]
[Black "CraiggoryC"]
[Result "0-1"]
[WhiteElo "2135"]
[BlackElo "2269"]
[TimeControl "180+1"]
[EndTime "15:50:52 PDT"]
[Termination "CraiggoryC won by resignation"]

1. d4 {[%clk 0:02:18.6]} 1... e6 {[%clk 0:03:00]} 2. Nf3 {[%clk 0:02:17.8]} 2...
Nf6 {[%clk 0:03:00.3]} 3. c4 {[%clk 0:02:17.8]} 3... d5 {[%clk 0:02:59.8]} 4.
cxd5 {[%clk 0:02:16.8]} 4... exd5 {[%clk 0:03:00.7]} 5. g3 {[%clk 0:02:16.4]}
5... c6 {[%clk 0:02:59.7]} 6. Bg2 {[%clk 0:02:16.4]} 6... Be7 {[%clk 0:03:00.4]}
7. O-O {[%clk 0:02:16.3]} 7... O-O {[%clk 0:03:01.1]} 8. Nc3 {[%clk 0:02:16.4]}
8... Bf5 {[%clk 0:03:00.9]} 9. Ne5 {[%clk 0:02:13.1]} 9... h6 {[%clk 0:02:56.4]}
10. Qb3 {[%clk 0:02:08.7]} 10... Qb6 {[%clk 0:02:56]} 11. Qxb6 {[%clk
0:02:06.7]} 11... axb6 {[%clk 0:02:56.9]} 12. a3 {[%clk 0:02:05.8]} 12... Nbd7
{[%clk 0:02:55.9]} 13. Nxd7 {[%clk 0:02:04.1]} 13... Bxd7 {[%clk 0:02:46.5]} 14.
f3 {[%clk 0:02:03.9]} 14... Rfe8 {[%clk 0:02:38.2]} 15. e4 {[%clk 0:02:03.7]}
15... Be6 {[%clk 0:02:19.2]} 16. e5 {[%clk 0:02:02.6]} 16... Nd7 {[%clk
0:01:59.6]} 17. g4 {[%clk 0:01:55.8]} 17... b5 {[%clk 0:01:50]} 18. Be3 {[%clk
0:01:45.7]} 18... Nb6 {[%clk 0:01:49.3]} 19. Rab1 {[%clk 0:01:34.2]} 19... Nc4
{[%clk 0:01:43.2]} 20. Bf2 {[%clk 0:01:32.9]} 20... b4 {[%clk 0:01:41.8]} 21.
axb4 {[%clk 0:01:31.3]} 21... Bxb4 {[%clk 0:01:42.7]} 22. h3 {[%clk 0:01:30.9]}
22... Nd2 {[%clk 0:01:42.6]} 23. f4 {[%clk 0:01:30]} 23... Nxf1 {[%clk
0:01:34.4]} 24. Kxf1 {[%clk 0:01:27.8]} 24... Bxc3 {[%clk 0:01:26.4]} 25. bxc3
{[%clk 0:01:26.7]} 25... b5 {[%clk 0:01:27]} 26. f5 {[%clk 0:01:26.2]} 26... Bd7
{[%clk 0:01:24.8]} 27. h4 {[%clk 0:01:04.1]} 27... h5 {[%clk 0:01:13]} 28. Bf3
{[%clk 0:00:52.9]} 28... Ra3 {[%clk 0:01:07.9]} 29. Be1 {[%clk 0:00:51.5]} 29...
Rea8 {[%clk 0:01:04.9]} 30. e6 {[%clk 0:00:43.8]} 30... fxe6 {[%clk 0:01:04.3]}
31. fxe6 {[%clk 0:00:43]} 31... Bxe6 {[%clk 0:01:00.5]} 32. gxh5 {[%clk
0:00:42.9]} 32... Ra1 {[%clk 0:00:46.1]} 33. Rxa1 {[%clk 0:00:41.3]} 33... Rxa1
{[%clk 0:00:47]} 34. Kf2 {[%clk 0:00:41.2]} 34... Bf5 {[%clk 0:00:36.7]} 35. Be2
{[%clk 0:00:38.1]} 35... Ra2 {[%clk 0:00:36.1]} 36. Ke3 {[%clk 0:00:37.2]} 36...
Kf7 {[%clk 0:00:29.3]} 37. Bf3 {[%clk 0:00:30.8]} 37... Be4 {[%clk 0:00:19.5]}
38. Bg4 {[%clk 0:00:27.7]} 38... Rg2 {[%clk 0:00:18.4]} 39. Bd7 {[%clk
0:00:23.5]} 39... Rg1 {[%clk 0:00:17.7]} 40. Bf2 {[%clk 0:00:22.8]} 40... Rc1
{[%clk 0:00:15.6]} 41. Bxc6 {[%clk 0:00:20.5]} 41... Rxc3+ {[%clk 0:00:15.6]}
42. Ke2 {[%clk 0:00:19]} 42... Rxc6 {[%clk 0:00:15.8]} 0-1